fUST/lending_fUST_20260507
["ID","MTS","AMOUNT","RATE_DAILY","PERIOD"]
[421776014,1778139041000,-500.0,0.00010958,2]
[421776008,1778139041000,-500.0,0.00010958,2]
[421776009,1778139041000,-500.0,0.00010958,2]
[421776017,1778139041000,-280.61,0.00010958,2]
[421775960,1778139041000,-151.0,0.00010958,2]
[421775995,1778139041000,-441.92933606,0.00010958,2]
[421775989,1778139041000,-500.0,0.00010958,2]
[421776015,1778139041000,-500.0,0.00010958,2]
[421776016,1778139041000,-500.0,0.00010958,2]
[421775999,1778139041000,-513.15,0.00010958,2]
[421775965,1778139041000,-207.89,0.00010958,2]
[421775963,1778139041000,-500.0,0.00010958,2]
[421775966,1778139041000,-500.0,0.00010958,2]
[421775968,1778139041000,-500.0,0.00010958,2]
[421775969,1778139041000,-261.3,0.00010958,2]
[421775970,1778139041000,-500.0,0.00010958,2]
[421775974,1778139041000,-557.15,0.00010958,2]
[421775975,1778139041000,-500.0,0.00010958,2]
[421775967,1778139041000,-500.0,0.00010958,2]
[421775973,1778139041000,-500.0,0.00010958,2]
[421775976,1778139041000,-640.65032639,0.00010958,2]
[421775972,1778139041000,-500.0,0.00010958,2]
[421775977,1778139041000,-102.42967361,0.00010958,2]
[421775979,1778139041000,-837.1,0.00010958,2]
[421775981,1778139041000,-500.0,0.00010958,2]
[421775983,1778139041000,-759.51,0.00010958,2]
[421775991,1778139041000,-500.0,0.00010958,2]
[421775971,1778139041000,-553.94,0.00010958,2]
[421775987,1778139041000,-500.0,0.00010958,2]
[421776029,1778139042000,-300.0,0.00011219,2]
[421776028,1778139042000,-300.0,0.00011219,2]
[421776026,1778139042000,-300.0,0.00011219,2]
[421776027,1778139042000,-300.0,0.00011219,2]
[421776025,1778139042000,-300.0,0.00011219,2]
[421776022,1778139042000,-300.0,0.00011219,2]
[421776021,1778139042000,-301.01105294,0.00011,2]
[421776020,1778139042000,-151.0,0.00011,2]
[421776018,1778139042000,-26862.44151088,0.00011,2]
[421776023,1778139042000,-300.0,0.00011219,2]
[421776019,1778139042000,-4177.15974365,0.00011,2]
[421776031,1778139042000,-300.0,0.00011219,2]
[421776024,1778139042000,-300.0,0.00011219,2]
[421776033,1778139042000,-300.0,0.00011219,2]
[421776034,1778139042000,-300.0,0.00011219,2]
[421776035,1778139042000,-300.0,0.00011219,2]
[421776046,1778139042000,-342.13403514,0.00011232,2]
[421776032,1778139042000,-300.0,0.00011219,2]
[421776045,1778139042000,-9.64275395,0.00011232,2]
[421776043,1778139042000,-500.0,0.00011232,2]
[421776042,1778139042000,-500.0,0.00011232,2]
[421776041,1778139042000,-500.0,0.00011232,2]
[421776044,1778139042000,-500.0,0.00011232,2]
[421776038,1778139042000,-469.1,0.00011232,2]
[421776036,1778139042000,-300.0,0.00011219,2]
[421776037,1778139042000,-1304.6526,0.00011232,2]
[421776039,1778139042000,-375.77,0.00011232,2]
[421776030,1778139042000,-300.0,0.00011219,2]
[421776040,1778139042000,-318.77,0.00011232,2]
[421776068,1778139046000,-92.74321091,0.00011232,2]
[421776067,1778139046000,-500.0,0.00010958,2]
[421776075,1778139046000,-500.0,0.00011232,2]
[421776071,1778139046000,-500.0,0.00011232,2]
[421776072,1778139046000,-500.0,0.00011232,2]
[421776073,1778139046000,-500.0,0.00011232,2]
[421776069,1778139046000,-500.0,0.00011232,2]
[421776074,1778139046000,-500.0,0.00011232,2]
[421776070,1778139046000,-213.62,0.00011232,2]
[421776076,1778139046000,-151.0,0.00011232,2]
[421776082,1778139046000,-743.08,0.00011232,2]
[421776087,1778139046000,-500.0,0.00011232,2]
[421776079,1778139046000,-500.0,0.00011232,2]
[421776090,1778139046000,-500.0,0.00011232,2]
[421776078,1778139046000,-190.77,0.00011232,2]
[421776089,1778139046000,-500.0,0.00011232,2]
[421776080,1778139046000,-500.0,0.00011232,2]
[421776081,1778139046000,-588.57306069,0.00011232,2]
[421776086,1778139046000,-759.51,0.00011232,2]
[421776083,1778139046000,-837.1,0.00011232,2]
[421776084,1778139046000,-500.0,0.00011232,2]
[421776077,1778139046000,-500.0,0.00011232,2]
[421776125,1778139047000,-423.98,0.00011506,2]
[421776130,1778139047000,-759.51,0.00011506,2]
[421776128,1778139047000,-837.1,0.00011506,2]
[421776124,1778139047000,-235.74276083,0.00011506,2]
[421776121,1778139047000,-500.0,0.00011506,2]
[421776142,1778139047000,-535.39,0.00011506,2]
[421776132,1778139047000,-500.0,0.00011506,2]
[421776123,1778139047000,-472.41,0.00011506,2]
[421776127,1778139047000,-743.08,0.00011506,2]
[421776133,1778139047000,-500.0,0.00011506,2]
[421776126,1778139047000,-500.0,0.00011506,2]
[421776136,1778139047000,-513.15,0.00011506,2]
[421776129,1778139047000,-500.0,0.00011506,2]
[421776135,1778139047000,-3851.79,0.00011506,2]
[421776134,1778139047000,-500.0,0.00011506,2]
[421776120,1778139047000,-500.0,0.00011506,2]
[421776138,1778139047000,-781.74,0.00011506,2]
[421776141,1778139047000,-500.0,0.00011506,2]
[421776146,1778139047000,-500.0,0.00011506,2]
[421776145,1778139047000,-642.04,0.00011506,2]
[421776137,1778139047000,-500.0,0.00011506,2]
[421776139,1778139047000,-500.0,0.00011506,2]
[421776140,1778139047000,-500.0,0.00011506,2]
[421776147,1778139047000,-500.0,0.00011506,2]
[421776122,1778139047000,-500.0,0.00011506,2]
[421776117,1778139047000,-500.0,0.00011506,2]
[421776112,1778139047000,-152.0,0.00011282,30]
[421776118,1778139047000,-361.02,0.00011506,2]
[421776093,1778139047000,-3851.79,0.00011232,2]
[421776092,1778139047000,-500.0,0.00011232,2]
[421776094,1778139047000,-513.15,0.00011232,2]
[421776095,1778139047000,-500.0,0.00011232,2]
[421776096,1778139047000,-781.74,0.00011232,2]
[421776097,1778139047000,-500.0,0.00011232,2]
[421776098,1778139047000,-500.0,0.00011232,2]
[421776100,1778139047000,-535.39,0.00011232,2]
[421776099,1778139047000,-500.0,0.00011232,2]
[421776103,1778139047000,-500.0,0.00011232,2]
[421776102,1778139047000,-231.82,0.00011232,2]
[421776115,1778139047000,-294.76,0.00011506,2]
[421776105,1778139047000,-500.0,0.00011232,2]
[421776104,1778139047000,-642.04,0.00011232,2]
[421776106,1778139047000,-500.0,0.00011232,2]
[421776108,1778139047000,-500.0,0.00011232,2]
[421776107,1778139047000,-500.0,0.00011232,2]
[421776109,1778139047000,-3252.92416246,0.00011254,21]
[421776116,1778139047000,-324.52,0.00011506,2]
[421776111,1778139047000,-152.0,0.00011282,30]
[421776110,1778139047000,-6602.47594857,0.00011268,2]
[421776114,1778139047000,-500.0,0.00011506,2]
[421776113,1778139047000,-600.0,0.00011431,2]
[421776119,1778139047000,-500.0,0.00011506,2]
[421776101,1778139047000,-500.0,0.00011232,2]
[421776143,1778139047000,-500.0,0.00011506,2]
[421776131,1778139047000,-500.0,0.00011506,2]
[421776148,1778139047000,-500.0,0.00011506,2]
[421776176,1778139047000,-500.0,0.0001178,2]
[421776181,1778139047000,-500.0,0.0001178,2]
[421776182,1778139047000,-500.0,0.0001178,2]
[421776179,1778139047000,-409.55178885,0.0001178,2]
[421776183,1778139047000,-500.0,0.0001178,2]
[421776180,1778139047000,-642.04,0.0001178,2]
[421776185,1778139047000,-151.0,0.000118,2]
[421776187,1778139047000,-1517.76739367,0.00011837,21]
[421776186,1778139047000,-500.0,0.00011834,2]
[421776189,1778139047000,-341.0,0.00011855,2]
[421776188,1778139047000,-6896.29084781,0.00011845,2]
[421776174,1778139047000,-428.57002164,0.0001178,2]
[421776192,1778139047000,-166.0,0.00011855,2]
[421776190,1778139047000,-166.0,0.00011855,2]
[421776195,1778139047000,-341.0,0.00011855,2]
[421776191,1778139047000,-166.0,0.00011855,2]
[421776194,1778139047000,-166.0,0.00011855,2]
[421776197,1778139047000,-341.0,0.00011855,2]
[421776196,1778139047000,-156.0,0.00011855,2]
[421776199,1778139047000,-156.0,0.00011855,2]
[421776201,1778139047000,-38.38210581,0.00011855,2]
[421776200,1778139047000,-156.0,0.00011855,2]
[421776198,1778139047000,-156.0,0.00011855,2]
[421776144,1778139047000,-500.0,0.00011506,2]
[421776193,1778139047000,-166.0,0.00011855,2]
[421776177,1778139047000,-535.39,0.0001178,2]
[421776184,1778139047000,-500.0,0.0001178,2]
[421776175,1778139047000,-500.0,0.0001178,2]
[421776149,1778139047000,-500.0,0.00011506,2]
[421776150,1778139047000,-151.0,0.000116,2]
[421776151,1778139047000,-456.1746553,0.00011732,2]
[421776178,1778139047000,-500.0,0.0001178,2]
[421776153,1778139047000,-566.57551245,0.00011753,21]
[421776154,1778139047000,-151.0,0.00011759,2]
[421776162,1778139047000,-743.08,0.0001178,2]
[421776155,1778139047000,-500.0,0.0001178,2]
[421776157,1778139047000,-500.0,0.0001178,2]
[421776160,1778139047000,-500.0,0.0001178,2]
[421776161,1778139047000,-473.08027173,0.0001178,2]
[421776156,1778139047000,-500.0,0.0001178,2]
[421776158,1778139047000,-500.0,0.0001178,2]
[421776152,1778139047000,-224.12,0.0001174,2]
[421776164,1778139047000,-500.0,0.0001178,2]
[421776159,1778139047000,-315.12,0.0001178,2]
[421776172,1778139047000,-500.0,0.0001178,2]
[421776169,1778139047000,-500.0,0.0001178,2]
[421776171,1778139047000,-513.15,0.0001178,2]
[421776168,1778139047000,-500.0,0.0001178,2]
[421776173,1778139047000,-781.74,0.0001178,2]
[421776165,1778139047000,-759.51,0.0001178,2]
[421776167,1778139047000,-500.0,0.0001178,2]
[421776166,1778139047000,-500.0,0.0001178,2]
[421776163,1778139047000,-837.1,0.0001178,2]
[421776170,1778139047000,-3851.79,0.0001178,2]
[421776538,1778139410000,5000000.0,0.00019178,120]
[421776865,1778140238000,-803.53722511,0.00010657,2]
[421776845,1778140238000,-500.0,0.00010657,2]
[421776864,1778140238000,-803.53722511,0.00010657,2]
[421776856,1778140238000,-803.53722511,0.00010657,2]
[421776847,1778140238000,-156.15278431,0.00010657,2]
[421776846,1778140238000,-500.0,0.00010657,2]
[421776850,1778140238000,-803.53722511,0.00010657,2]
[421776849,1778140238000,-425.99804581,0.00010657,2]
[421776848,1778140238000,-510.44683217,0.00010657,2]
[421776843,1778140238000,-500.63776901,0.00010657,2]
[421776844,1778140238000,-500.0,0.00010657,2]
[421776854,1778140238000,-803.53722511,0.00010657,2]
[421776851,1778140238000,-803.53722511,0.00010657,2]
[421776852,1778140238000,-803.53722511,0.00010657,2]
[421776841,1778140238000,-4514.4402316,0.00010005,2]
[421776838,1778140238000,-5000.0,9.611e-05,2]
[421776840,1778140238000,-343.79119323,9.832e-05,2]
[421776866,1778140238000,-803.53722511,0.00010657,2]
[421776842,1778140238000,-152.0,0.00010639,7]
[421776867,1778140238000,-803.53722511,0.00010657,2]
[421776853,1778140238000,-556.99205103,0.00010657,2]
[421776861,1778140238000,-803.53722511,0.00010657,2]
[421776880,1778140238000,-867.82020313,0.00010657,2]
[421776875,1778140238000,-867.82020313,0.00010657,2]
[421776868,1778140238000,-803.53722511,0.00010657,2]
[421776870,1778140238000,-803.53722511,0.00010657,2]
[421776877,1778140238000,-867.82020313,0.00010657,2]
[421776879,1778140238000,-867.82020313,0.00010657,2]
[421776871,1778140238000,-803.53722511,0.00010657,2]
[421776882,1778140238000,-830.5058618,0.00010657,2]
[421776874,1778140238000,-867.82020313,0.00010657,2]
[421776876,1778140238000,-867.82020313,0.00010657,2]
[421776881,1778140238000,-867.82020313,0.00010657,2]
[421776872,1778140238000,-867.82020313,0.00010657,2]
[421776860,1778140238000,-803.53722511,0.00010657,2]
[421776863,1778140238000,-803.53722511,0.00010657,2]
[421776858,1778140238000,-618.44235687,0.00010657,2]
[421776855,1778140238000,-803.53722511,0.00010657,2]
[421776862,1778140238000,-803.53722511,0.00010657,2]
[421776857,1778140238000,-803.53722511,0.00010657,2]
[421776869,1778140238000,-803.53722511,0.00010657,2]
[421776873,1778140238000,-867.82020313,0.00010657,2]
[421776859,1778140238000,-185.09486824,0.00010657,2]
[421776884,1778140239000,-2615.91678418,0.00010658,2]
[421776885,1778140239000,-2849.94311707,0.00010658,2]
[421776883,1778140239000,-37.31434133,0.00010657,2]
[421776923,1778140247000,-4502.77913085,0.00010658,2]
[421776924,1778140248000,-442.98,0.00010552,2]
[421776983,1778140530000,200.0,0.0001841,120]
[421777022,1778140836000,-1646.08018762,0.00010143,2]
[421777027,1778140879000,5008.87,0.0001917,120]
[421777028,1778140899000,5000.0,0.0001917,120]
[421777032,1778141010000,200.0,0.00018225,120]
[421777036,1778141189000,225.55617402,0.00016054,120]
[421777043,1778141342000,151.0,8.16e-05,2]
[421777213,1778141350000,151.0,8.16e-05,2]
[421777214,1778141353000,571.43,0.00019178,120]
[421777216,1778141371000,200.0,0.00018774,120]
[421777231,1778141385000,161.818701,4.636e-05,2]
[421777233,1778141430000,200.0,0.00017132,120]
[421777281,1778141433000,-325.96676677,9.179e-05,2]
[421777279,1778141433000,-260.97405191,9.087e-05,2]
[421777284,1778141433000,-1828.60152261,9.179e-05,2]
[421777347,1778141439000,-650.0,0.00010658,2]
[421777349,1778141439000,-455.1455486,0.00010948,2]
[421777350,1778141439000,-500.0,0.00010958,2]
[421777342,1778141439000,-650.0,0.00010658,2]
[421777344,1778141439000,-650.0,0.00010658,2]
[421777343,1778141439000,-650.0,0.00010658,2]
[421777346,1778141439000,-650.0,0.00010658,2]
[421777341,1778141439000,-650.0,0.00010658,2]
[421777340,1778141439000,-650.0,0.00010658,2]
[421777339,1778141439000,-650.0,0.00010658,2]
[421777362,1778141439000,-500.0,0.00010958,2]
[421777348,1778141439000,-2262.63052861,0.00010664,2]
[421777351,1778141439000,-500.0,0.00010958,2]
[421777352,1778141439000,-500.0,0.00010958,2]
[421777353,1778141439000,-500.40030532,0.00010958,2]
[421777355,1778141439000,-500.0,0.00010958,2]
[421777333,1778141439000,-622.0,0.00010658,2]
[421777365,1778141439000,-500.0,0.00010958,2]
[421777354,1778141439000,-215.24711213,0.00010958,2]
[421777356,1778141439000,-500.0,0.00010958,2]
[421777358,1778141439000,-500.0,0.00010958,2]
[421777357,1778141439000,-500.0,0.00010958,2]
[421777361,1778141439000,-500.0,0.00010958,2]
[421777359,1778141439000,-500.0,0.00010958,2]
[421777364,1778141439000,-500.0,0.00010958,2]
[421777360,1778141439000,-648.9,0.00010958,2]
[421777345,1778141439000,-650.0,0.00010658,2]
[421777337,1778141439000,-650.0,0.00010658,2]
[421777315,1778141439000,-2674.77960373,0.00010426,2]
[421777335,1778141439000,-650.0,0.00010658,2]
[421777363,1778141439000,-504.81,0.00010958,2]
[421777307,1778141439000,-2845.43171062,9.179e-05,2]
[421777311,1778141439000,-151.0000001,0.00010144,2]
[421777310,1778141439000,-151.0,0.00010144,2]
[421777308,1778141439000,-346.14699254,9.225e-05,2]
[421777309,1778141439000,-161.818701,9.271e-05,2]
[421777312,1778141439000,-500.0,0.00010257,2]
[421777313,1778141439000,-970431.96107756,0.00010258,2]
[421777314,1778141439000,-65008.88239384,0.00010258,2]
[421777316,1778141439000,-1046.315342,0.00010526,2]
[421777319,1778141439000,-23016.6862139,0.00010544,2]
[421777317,1778141439000,-3477.5391594,0.00010526,2]
[421777323,1778141439000,-650.0,0.00010658,2]
[421777334,1778141439000,-650.0,0.00010658,2]
[421777321,1778141439000,-156.14188284,0.00010658,2]
[421777318,1778141439000,-1211.7640378,0.00010544,2]
[421777320,1778141439000,-152.0,0.0001064,7]
[421777322,1778141439000,-650.0,0.00010658,2]
[421777325,1778141439000,-650.0,0.00010658,2]
[421777326,1778141439000,-650.0,0.00010658,2]
[421777328,1778141439000,-650.0,0.00010658,2]
[421777338,1778141439000,-650.0,0.00010658,2]
[421777327,1778141439000,-650.0,0.00010658,2]
[421777332,1778141439000,-650.0,0.00010658,2]
[421777330,1778141439000,-650.0,0.00010658,2]
[421777331,1778141439000,-650.0,0.00010658,2]
[421777329,1778141439000,-650.0,0.00010658,2]
[421777336,1778141439000,-650.0,0.00010658,2]
[421777324,1778141439000,-650.0,0.00010658,2]
[421777366,1778141439000,-500.0,0.00010958,2]
[421777398,1778141439000,-500.0,0.00010958,2]
[421777375,1778141439000,-500.0,0.00010958,2]
[421777402,1778141439000,-511.04,0.00010958,2]
[421777403,1778141439000,-500.0,0.00010958,2]
[421777404,1778141439000,-500.0,0.00010958,2]
[421777405,1778141439000,-500.0,0.00010958,2]
[421777406,1778141439000,-500.0,0.00010958,2]
[421777408,1778141439000,-500.0,0.00010958,2]
[421777407,1778141439000,-500.0,0.00010958,2]
[421777410,1778141439000,-500.0,0.00010958,2]
[421777409,1778141439000,-500.0,0.00010958,2]
[421777411,1778141439000,-500.0,0.00010958,2]
[421777413,1778141439000,-500.0,0.00010958,2]
[421777412,1778141439000,-500.0,0.00010958,2]
[421777417,1778141439000,-500.0,0.00010958,2]
[421777418,1778141439000,-500.0,0.00010958,2]
[421777419,1778141439000,-500.0,0.00010958,2]
[421777416,1778141439000,-500.0,0.00010958,2]
[421777420,1778141439000,-500.0,0.00010958,2]
[421777423,1778141439000,-500.0,0.00010958,2]
[421777421,1778141439000,-530.0,0.00010958,2]
[421777425,1778141439000,-500.0,0.00010958,2]
[421777422,1778141439000,-500.0,0.00010958,2]
[421777415,1778141439000,-500.0,0.00010958,2]
[421777424,1778141439000,-500.0,0.00010958,2]
[421777426,1778141439000,-500.0,0.00010958,2]
[421777427,1778141439000,-500.0,0.00010958,2]
[421777428,1778141439000,-500.0,0.00010958,2]
[421777368,1778141439000,-612.92,0.00010958,2]
[421777401,1778141439000,-500.0,0.00010958,2]
[421777400,1778141439000,-500.0,0.00010958,2]
[421777414,1778141439000,-500.0,0.00010958,2]
[421777396,1778141439000,-500.0,0.00010958,2]
[421777369,1778141439000,-562.88,0.00010958,2]
[421777399,1778141439000,-500.0,0.00010958,2]
[421777376,1778141439000,-500.0,0.00010958,2]
[421777367,1778141439000,-500.0,0.00010958,2]
[421777377,1778141439000,-500.0,0.00010958,2]
[421777370,1778141439000,-574.8,0.00010958,2]
[421777378,1778141439000,-500.0,0.00010958,2]
[421777371,1778141439000,-500.0,0.00010958,2]
[421777372,1778141439000,-500.0,0.00010958,2]
[421777373,1778141439000,-500.0,0.00010958,2]
[421777379,1778141439000,-500.0,0.00010958,2]
[421777381,1778141439000,-500.0,0.00010958,2]
[421777388,1778141439000,-500.0,0.00010958,2]
[421777385,1778141439000,-500.0,0.00010958,2]
[421777374,1778141439000,-500.0,0.00010958,2]
[421777397,1778141439000,-503.41194362,0.00010958,2]
[421777394,1778141439000,-500.0,0.00010958,2]
[421777389,1778141439000,-500.0,0.00010958,2]
[421777395,1778141439000,-500.0,0.00010958,2]
[421777393,1778141439000,-500.0,0.00010958,2]
[421777392,1778141439000,-500.0,0.00010958,2]
[421777390,1778141439000,-500.0,0.00010958,2]
[421777391,1778141439000,-500.0,0.00010958,2]
[421777382,1778141439000,-500.0,0.00010958,2]
[421777384,1778141439000,-500.0,0.00010958,2]
[421777380,1778141439000,-500.0,0.00010958,2]
[421777386,1778141439000,-500.0,0.00010958,2]
[421777387,1778141439000,-500.0,0.00010958,2]
[421777472,1778141440000,-500.0,0.00010958,2]
[421777467,1778141440000,-500.0,0.00010958,2]
[421777469,1778141440000,-500.0,0.00010958,2]
[421777470,1778141440000,-500.0,0.00010958,2]
[421777468,1778141440000,-500.0,0.00010958,2]
[421777457,1778141440000,-637.89,0.00010958,2]
[421777458,1778141440000,-575.07,0.00010958,2]
[421777463,1778141440000,-500.0,0.00010958,2]
[421777465,1778141440000,-500.0,0.00010958,2]
[421777456,1778141440000,-500.0,0.00010958,2]
[421777473,1778141440000,-500.0,0.00010958,2]
[421777466,1778141440000,-606.1,0.00010958,2]
[421777474,1778141440000,-500.0,0.00010958,2]
[421777488,1778141440000,-804.56477144,0.00010958,2]
[421777477,1778141440000,-500.0,0.00010958,2]
[421777476,1778141440000,-618.14775829,0.00010958,2]
[421777478,1778141440000,-317.50228618,0.00010958,2]
[421777480,1778141440000,-630.4,0.00010958,2]
[421777481,1778141440000,-500.0,0.00010958,2]
[421777482,1778141440000,-500.0,0.00010958,2]
[421777485,1778141440000,-500.0,0.00010958,2]
[421777484,1778141440000,-500.0,0.00010958,2]
[421777487,1778141440000,-500.0,0.00010958,2]
[421777483,1778141440000,-500.0,0.00010958,2]
[421777479,1778141440000,-500.0,0.00010958,2]
[421777486,1778141440000,-620.04,0.00010958,2]
[421777464,1778141440000,-500.0,0.00010958,2]
[421777475,1778141440000,-500.0,0.00010958,2]
[421777462,1778141440000,-500.0,0.00010958,2]
[421777429,1778141440000,-500.0,0.00010958,2]
[421777454,1778141440000,-500.0,0.00010958,2]
[421777490,1778141440000,-500.0,0.00010958,2]
[421777431,1778141440000,-500.0,0.00010958,2]
[421777430,1778141440000,-587.21,0.00010958,2]
[421777432,1778141440000,-627.54767224,0.00010958,2]
[421777433,1778141440000,-500.0,0.00010958,2]
[421777434,1778141440000,-500.0,0.00010958,2]
[421777437,1778141440000,-500.0,0.00010958,2]
[421777435,1778141440000,-500.0,0.00010958,2]
[421777436,1778141440000,-500.0,0.00010958,2]
[421777439,1778141440000,-500.0,0.00010958,2]
[421777438,1778141440000,-500.0,0.00010958,2]
[421777441,1778141440000,-500.0,0.00010958,2]
[421777440,1778141440000,-555.91141745,0.00010958,2]
[421777461,1778141440000,-500.0,0.00010958,2]
[421777448,1778141440000,-500.0,0.00010958,2]
[421777442,1778141440000,-500.0,0.00010958,2]
[421777446,1778141440000,-500.0,0.00010958,2]
[421777450,1778141440000,-590.94575973,0.00010958,2]
[421777451,1778141440000,-500.0,0.00010958,2]
[421777447,1778141440000,-500.0,0.00010958,2]
[421777452,1778141440000,-500.0,0.00010958,2]
[421777443,1778141440000,-500.0,0.00010958,2]
[421777445,1778141440000,-500.0,0.00010958,2]
[421777449,1778141440000,-500.0,0.00010958,2]
[421777453,1778141440000,-500.0,0.00010958,2]
[421777455,1778141440000,-500.0,0.00010958,2]
[421777459,1778141440000,-500.0,0.00010958,2]
[421777460,1778141440000,-500.0,0.00010958,2]
[421777444,1778141440000,-500.0,0.00010958,2]
[421777489,1778141440000,-500.0,0.00010958,2]
[421777471,1778141440000,-500.0,0.00010958,2]
[421777492,1778141440000,-554.6450126,0.00010958,2]
[421777520,1778141440000,-500.0,0.00010958,2]
[421777525,1778141440000,-500.0,0.00010958,2]
[421777524,1778141440000,-951.14,0.00010958,2]
[421777521,1778141440000,-500.0,0.00010958,2]
[421777531,1778141440000,-1039.77,0.00010958,2]
[421777534,1778141440000,-500.0,0.00010958,2]
[421777536,1778141440000,-500.0,0.00010958,2]
[421777533,1778141440000,-500.0,0.00010958,2]
[421777539,1778141440000,-500.0,0.00010958,2]
[421777540,1778141440000,-500.0,0.00010958,2]
[421777535,1778141440000,-500.0,0.00010958,2]
[421777542,1778141440000,-500.0,0.00010958,2]
[421777532,1778141440000,-500.0,0.00010958,2]
[421777526,1778141440000,-500.0,0.00010958,2]
[421777541,1778141440000,-621.41,0.00010958,2]
[421777543,1778141440000,-500.0,0.00010958,2]
[421777538,1778141440000,-578.99,0.00010958,2]
[421777555,1778141440000,-500.0,0.00010958,2]
[421777544,1778141440000,-500.0,0.00010958,2]
[421777546,1778141440000,-500.0,0.00010958,2]
[421777545,1778141440000,-500.0,0.00010958,2]
[421777549,1778141440000,-500.0,0.00010958,2]
[421777553,1778141440000,-500.0,0.00010958,2]
[421777547,1778141440000,-500.0,0.00010958,2]
[421777551,1778141440000,-500.0,0.00010958,2]
[421777548,1778141440000,-500.0,0.00010958,2]
[421777552,1778141440000,-500.0,0.00010958,2]
[421777554,1778141440000,-500.0,0.00010958,2]
[421777537,1778141440000,-500.0,0.00010958,2]
[421777519,1778141440000,-500.0,0.00010958,2]
[421777495,1778141440000,-500.0,0.00010958,2]
[421777523,1778141440000,-523.45,0.00010958,2]
[421777522,1778141440000,-500.0,0.00010958,2]
[421777496,1778141440000,-500.0,0.00010958,2]
[421777491,1778141440000,-500.0,0.00010958,2]
[421777499,1778141440000,-535.03,0.00010958,2]
[421777498,1778141440000,-500.0,0.00010958,2]
[421777494,1778141440000,-500.0,0.00010958,2]
[421777497,1778141440000,-500.0,0.00010958,2]
[421777500,1778141440000,-500.0,0.00010958,2]
[421777502,1778141440000,-371.73486445,0.00010958,2]
[421777501,1778141440000,-500.0,0.00010958,2]
[421777503,1778141440000,-500.0,0.00010958,2]
[421777508,1778141440000,-500.0,0.00010958,2]
[421777506,1778141440000,-500.0,0.00010958,2]
[421777509,1778141440000,-500.0,0.00010958,2]
[421777493,1778141440000,-500.0,0.00010958,2]
[421777507,1778141440000,-500.0,0.00010958,2]
[421777529,1778141440000,-1039.81,0.00010958,2]
[421777527,1778141440000,-500.0,0.00010958,2]
[421777528,1778141440000,-500.0,0.00010958,2]
[421777530,1778141440000,-584.71,0.00010958,2]
[421777504,1778141440000,-500.0,0.00010958,2]
[421777517,1778141440000,-500.0,0.00010958,2]
[421777518,1778141440000,-588.68,0.00010958,2]
[421777513,1778141440000,-500.0,0.00010958,2]
[421777515,1778141440000,-547.28724985,0.00010958,2]
[421777550,1778141440000,-500.0,0.00010958,2]
[421777505,1778141440000,-500.0,0.00010958,2]
[421777514,1778141440000,-581.38,0.00010958,2]
[421777512,1778141440000,-500.0,0.00010958,2]
[421777516,1778141440000,-500.0,0.00010958,2]